bitfinex-derivatives/quotes_SOLF0:USTF0_20250819
["timestamp","ask_amount","ask_price","bid_price","bid_amount"]
[1755642686417,0.03968639,178.94,178.92,3.06]
[1755642686815,0.03968639,178.94,178.93,3.06]
[1755642688209,0.03968639,178.94,178.93,3.62]
[1755642689018,0.03968639,178.94,178.93,9.2093]
[1755642689218,3.07,179.0,178.93,7.30559528]
[1755642689413,3.07,179.0,178.94,2.98]
[1755642691919,3.07,179.0,178.96,2.98]
[1755642692119,3.07,179.0,178.97,2.98]
[1755642692623,3.0,179.05,178.97,3.01955667]
[1755642693219,2.64473416,179.04,178.97,3.01955667]
[1755642693422,3.0,179.05,178.97,3.01955667]
[1755642693721,3.0,179.03,178.97,3.01955667]
[1755642703029,142.42559528,179.08,178.97,5.62745667]
[1755642703327,5.64560811,179.07,178.98,2.98]
[1755642703523,3.0,179.06,178.98,2.98]
[1755642704128,3.0,179.06,179.0,0.03621594]
[1755642704832,3.0,179.06,179.0,3.01621594]
[1755642711035,3.0,179.12,179.0,3.01621594]
[1755642711434,3.0,179.12,179.04,2.98]
[1755642713232,3.0,179.12,178.99,2.98]
[1755642713536,3.0,179.12,179.0,2.98]
[1755642713739,3.0,179.12,179.04,0.0358238]
[1755642717534,6.76559528,179.1,179.04,0.0358238]
[1755642717834,3.0,179.09,179.04,0.0358238]
[1755642719139,3.76559528,179.1,179.04,0.0358238]
[1755642719339,3.12,179.08,179.04,0.0358238]
[1755642719541,6.88559528,179.1,179.04,0.0358238]
[1755642720338,3.76559528,179.1,179.04,0.0358238]
[1755642720636,3.12,179.07,179.04,0.0358238]
[1755642720831,3.76559528,179.1,179.04,0.0358238]
[1755642720832,3.12,179.09,179.04,0.0358238]
[1755642721035,2.64171287,179.08,179.04,0.0358238]
[1755642721234,3.12,179.06,179.04,0.0358238]
[1755642722538,3.12,179.05,179.04,0.0358238]
[1755642728446,3.12,179.07,179.04,0.0358238]
[1755642729246,3.12,179.07,179.04,3.1958238]
[1755642730241,3.76559528,179.11,179.04,3.1958238]
[1755642730242,3.12,179.1,179.05,3.16]
[1755642730436,5.76657852,179.09,179.05,3.16]
[1755642730646,3.12,179.09,179.05,3.16]
[1755642730945,3.12,179.09,179.04,0.0358238]
[1755642731150,9.37967801,179.12,179.05,3.16]
[1755642731442,2.64649325,179.11,179.05,3.16]
[1755642731640,3.12,179.12,179.05,3.16]
[1755642731839,2.64717016,179.11,179.05,3.16]
[1755642732139,3.12,179.12,179.05,3.16]
[1755642732340,2.64717016,179.11,179.05,3.16]
[1755642732544,3.12,179.12,179.05,3.16]
[1755642732744,2.64758861,179.11,179.05,3.16]
[1755642732950,3.12,179.12,179.05,3.16]
[1755642733247,2.64758863,179.11,179.05,3.16]
[1755642733442,3.12,179.12,179.05,3.16]
[1755642733642,2.64789935,179.11,179.05,3.16]
[1755642733838,3.12,179.12,179.05,3.16]
[1755642734042,2.64789935,179.11,179.05,3.16]
[1755642734348,3.12,179.12,179.05,3.16]
[1755642734651,2.64808004,179.11,179.05,3.16]
[1755642734843,3.12,179.12,179.05,3.16]
[1755642735047,2.64782527,179.11,179.05,3.16]
[1755642735242,3.12,179.12,179.05,3.16]
[1755642735442,2.64775135,179.11,179.05,3.16]
[1755642735644,3.12,179.12,179.05,3.16]
[1755642735846,2.64775135,179.11,179.05,3.16]
[1755642736046,3.12,179.12,179.05,3.16]
[1755642736248,2.64775135,179.11,179.05,3.16]
[1755642736452,3.12,179.12,179.05,3.16]
[1755642736748,3.12,179.09,179.05,3.16]
[1755642736944,148.50527329,179.14,179.05,3.16]
[1755642737152,8.90741281,179.13,179.02,3.16]
[1755642737347,2.6477348,179.12,179.02,3.16]
[1755642737650,3.12,179.11,179.08,0.03653184]
[1755642737951,3.12,179.09,179.08,0.03653184]
[1755642738151,5.7677348,179.09,179.08,0.03653184]
[1755642739352,5.76845002,179.09,179.08,0.03653184]
[1755642740449,5.76919559,179.09,179.08,0.03653184]
[1755642740646,3.12,179.11,179.08,0.03653184]
[1755642740847,5.76916758,179.1,179.08,0.03653184]
[1755642741053,3.12,179.1,179.08,0.03653184]
[1755642742453,3.12,179.09,179.08,0.03653184]
[1755642743649,5.76721143,179.09,179.08,0.03653184]
[1755642745655,3.76559528,179.11,179.08,0.03653184]
[1755642745851,2.64789044,179.1,179.08,3.19653184]
[1755642746052,6.88559528,179.11,179.08,0.03653184]
[1755642746249,5.76789044,179.1,179.08,0.03653184]
[1755642746450,3.12,179.1,179.08,0.03653184]
[1755642746646,5.76818768,179.09,179.08,0.03653184]
[1755642748451,2.64818768,179.09,179.08,0.03653184]
[1755642748651,5.65868164,179.09,179.08,0.03653184]
[1755642749255,5.65868164,179.09,179.03,2.92]
[1755642749451,2.64868164,179.08,178.99,2.92]
[1755642749650,3.01,179.09,178.99,2.92]
[1755642750053,10.02527329,179.11,178.99,8.5073]
[1755642750258,2.64898788,179.1,179.0,2.92]
[1755642750447,2.64898788,179.09,179.0,2.92]
[1755642750648,3.76559528,179.11,179.01,2.92]
[1755642750851,2.64911693,179.1,179.01,2.92]
[1755642751047,6.25967801,179.13,179.01,3.76559528]
[1755642751253,2.64880587,179.12,179.04,2.92]
[1755642751450,147.50967801,179.15,179.04,2.92]
[1755642751762,2.6486427,179.14,179.04,2.92]
[1755642751959,2.6486427,179.13,179.04,2.92]
[1755642752155,2.6486427,179.12,179.04,2.92]
[1755642752359,147.50967801,179.15,179.04,2.92]
[1755642752662,2.64854979,179.14,179.04,2.92]
[1755642752857,2.64854979,179.13,179.04,2.92]
[1755642753051,2.64854979,179.12,179.04,2.92]
[1755642753250,147.50967801,179.15,179.04,2.92]
[1755642753455,2.64852225,179.14,179.04,2.92]
[1755642753650,2.64820118,179.13,179.04,2.92]
[1755642753962,2.64820118,179.12,179.04,2.92]
[1755642754163,147.50967801,179.15,179.04,2.92]
[1755642754363,2.64785669,179.14,179.04,2.92]
[1755642754564,2.64785669,179.13,179.04,2.92]
[1755642754762,2.64785669,179.12,179.04,2.92]
[1755642754963,147.50967801,179.15,179.04,2.92]
[1755642755261,2.64794567,179.14,179.04,2.92]
[1755642755462,2.64794567,179.13,179.04,2.92]
[1755642755662,2.64794567,179.12,179.04,2.92]
[1755642755862,147.50967801,179.15,179.04,2.92]
[1755642756063,2.6476492,179.14,179.04,2.92]
[1755642756264,2.6476492,179.13,179.04,2.92]
[1755642756460,147.50967801,179.15,179.04,2.92]
[1755642756653,2.64730836,179.14,179.05,2.92]
[1755642756859,3.01,179.13,179.05,2.92]
[1755642758068,3.01,179.11,179.05,2.92]
[1755642761572,3.01,179.09,179.05,2.92]
[1755642761776,3.01,179.09,179.0,8.507]
[1755642761970,3.01,179.09,179.01,2.92]
[1755642763481,6.77559528,179.11,179.01,2.92]
[1755642763777,2.64714877,179.1,179.01,2.92]
[1755642763978,6.77559528,179.11,179.01,2.92]
[1755642764175,2.6470635,179.1,179.01,2.92]
[1755642764377,6.77559528,179.11,179.01,2.92]
[1755642764681,2.6471732,179.1,179.01,2.92]
[1755642764876,6.77559528,179.11,179.01,2.92]
[1755642765079,2.6471732,179.1,179.01,2.92]
[1755642765270,6.77559528,179.11,179.01,2.92]
[1755642765478,2.64718802,179.1,179.01,2.92]
[1755642765675,6.77559528,179.11,179.01,2.92]
[1755642765882,2.64710275,179.1,179.01,2.92]
[1755642766177,3.01,179.11,179.0,3.76559528]
[1755642766380,3.01,179.14,179.04,2.92]
[1755642766579,2.64699079,179.13,179.04,2.92]
[1755642766781,3.01,179.14,179.04,8.5057]
[1755642766980,3.01,179.14,179.05,2.92]
[1755642767384,3.01,179.14,179.05,8.5053]
[1755642767578,3.01,179.14,179.06,2.92]
[1755642768688,10.02527329,179.17,179.06,8.5053]
[1755642768982,3.01,179.15,179.07,2.92]
[1755642770389,2.64608086,179.14,179.07,2.92]
[1755642770685,3.01,179.13,179.07,2.92]
[1755642772587,9.26967801,179.16,179.07,2.92]
[1755642772887,3.01,179.14,179.07,2.92]
[1755642776889,13.03527329,179.17,179.07,2.92]
[1755642777091,2.64553469,179.16,179.07,2.92]
[1755642777389,2.64535271,179.15,179.07,2.92]
[1755642777592,2.64535271,179.14,179.07,2.92]
[1755642777784,13.03527329,179.17,179.07,2.92]
[1755642777986,2.64535271,179.16,179.07,2.92]
[1755642778284,5.68535271,179.15,179.07,2.92]
[1755642778485,2.64535271,179.14,179.07,2.92]
[1755642778688,3.04,179.15,179.07,2.92]
[1755642778989,2.64518841,179.14,179.07,2.92]
[1755642779192,3.04,179.15,179.07,2.92]
[1755642779391,2.64512378,179.14,179.07,2.92]
[1755642779587,3.04,179.15,179.07,2.92]
[1755642779793,2.64504087,179.14,179.07,2.92]
[1755642779991,3.04,179.15,179.07,2.92]
[1755642780194,6.25967801,179.13,179.07,2.92]
[1755642780395,3.04,179.12,179.04,3.04]
[1755642780885,3.04,179.11,179.04,3.04]
[1755642783195,3.04,179.11,179.02,208.87578848]
[1755642783196,3.04,179.1,179.02,208.87578848]
[1755642783391,3.04,179.08,179.02,208.87578848]
[1755642783899,3.76559528,179.08,179.0,3.04]
[1755642784198,5.6858983,179.07,178.97,3.04]
[1755642784388,3.76559528,179.08,178.97,3.04]
[1755642784698,3.04,179.06,178.97,3.04]
[1755642785291,3.04,179.04,178.97,3.04]
[1755642785487,3.04,179.04,178.95,513.52]
[1755642785795,3.04,179.04,178.95,138.1]
[1755642786997,3.04,179.04,178.96,3.04]
[1755642788593,3.76559528,179.08,178.96,3.04]
[1755642788798,2.64199954,179.07,178.97,5.5879]
[1755642788996,6.80559528,179.08,178.98,3.04]
[1755642789300,2.64212128,179.07,178.98,3.04]
[1755642789491,6.80559528,179.08,178.98,3.04]
[1755642789791,2.64167405,179.07,178.98,3.04]
[1755642789992,6.80559528,179.08,178.99,3.04]
[1755642791703,3.04,179.08,179.0,3.04]
[1755642793601,3.04,179.12,179.01,3.04]
[1755642793794,2.64110696,179.11,179.01,3.04]
[1755642793990,3.04,179.12,179.01,3.04]
[1755642794194,2.64110696,179.11,179.01,3.04]
[1755642794397,3.04,179.12,179.02,3.04]
[1755642797097,3.04,179.1,179.02,3.04]
[1755642799404,3.04,179.1,179.03,3.04]
[1755642799909,3.04,179.1,179.0,3.76559528]
[1755642801094,3.04,179.1,179.01,3.04]
[1755642802904,2.64170145,179.09,179.01,3.04]
[1755642803206,3.04,179.08,179.01,3.04]
[1755642803908,6.80559528,179.08,178.99,215.60691738]
[1755642804103,5.68219425,179.07,178.99,215.60691738]
[1755642804306,3.04,179.06,178.99,215.60691738]
[1755642806602,3.04,179.02,178.99,215.60691738]
[1755642806906,3.04,179.02,178.99,218.64691738]
[1755642807103,3.76559528,179.05,178.99,218.64691738]
[1755642807307,6.80559528,179.05,178.99,218.64691738]
[1755642808512,3.04,179.05,178.99,218.64691738]
[1755642809612,3.76559528,179.07,179.0,2.84]
[1755642810509,2.94,179.06,179.0,2.84]
[1755642819519,2.94,179.06,178.99,215.60691738]
[1755642820115,2.94,179.06,179.0,2.84]
[1755642823217,2.64156271,179.05,178.99,215.60691738]
[1755642823414,2.94,179.06,178.99,215.60691738]
[1755642823615,2.64153912,179.05,178.99,215.60691738]
[1755642823810,2.94,179.03,178.99,218.44691738]
[1755642824211,2.94,179.03,178.99,215.60691738]
[1755642824415,2.94,179.03,179.0,2.84]
[1755642824620,3.76559528,179.07,178.99,215.60691738]
[1755642824820,5.58261353,179.06,178.99,218.44691738]
[1755642825017,2.94,179.06,178.99,218.44691738]
[1755642828322,2.64269973,179.05,178.99,218.44691738]
[1755642828522,2.94,179.06,178.99,218.44691738]
[1755642829624,2.94,179.06,178.99,215.60691738]
[1755642829821,9.19967801,179.09,179.0,2.84]
[1755642830017,2.64339711,179.08,179.02,2.84]
[1755642830220,2.94,179.09,179.02,2.84]
[1755642830421,2.64317793,179.08,179.02,2.84]
[1755642830626,2.64298727,179.07,179.02,2.84]
[1755642830931,2.94,179.08,179.04,2.84]
[1755642831128,5.58301721,179.07,179.04,2.84]
[1755642831322,6.70559528,179.1,179.02,2.84]
[1755642831527,2.64337114,179.09,179.02,2.84]
[1755642831717,2.94,179.1,179.02,2.84]
[1755642832316,2.64357172,179.09,179.02,2.84]
[1755642832521,2.94,179.08,179.02,2.84]
[1755642835329,6.25967801,179.12,179.02,2.84]
[1755642835527,5.58333887,179.11,179.02,2.84]
[1755642835925,2.6432776,179.1,179.02,2.84]
[1755642836128,2.94,179.11,179.02,2.84]
[1755642836424,2.94,179.11,179.03,2.84]
[1755642841225,2.94,179.11,179.03,140.8]
[1755642841429,2.99,179.14,179.04,3.02]
[1755642844829,2.64518895,179.13,179.04,3.02]
[1755642845029,2.99,179.14,179.04,3.02]
[1755642845234,2.64414785,179.13,179.04,3.02]
[1755642845535,2.99,179.14,179.04,3.02]
[1755642845737,2.64413213,179.13,179.04,3.02]
[1755642845936,2.99,179.14,179.04,3.02]
[1755642846338,2.99,179.14,179.04,5.5859]
[1755642846535,2.99,179.14,179.05,3.02]
[1755642847442,2.99,179.14,179.06,3.02]
[1755642849944,2.99,179.14,179.07,3.02]
[1755642850639,2.99,179.16,179.07,3.02]
[1755642857345,2.99,179.16,179.07,6.78559528]
[1755642858744,2.99,179.16,179.07,3.76559528]
[1755642858947,2.99,179.16,179.08,3.02]
[1755642864347,5.38419386,179.16,179.09,2.39419386]
[1755642865148,2.99,179.15,179.09,2.39419386]
[1755642867448,2.99,179.15,179.1,3.02]
[1755642867754,2.99,179.13,179.11,3.02]
[1755642883367,3.08,179.15,179.09,3.03]
[1755642883560,2.65120178,179.14,179.08,2.39419386]
[1755642883762,5.73120178,179.13,179.1,3.03]
[1755642884067,3.08,179.13,179.1,3.03]
[1755642886268,3.08,179.11,179.07,3.03]
[1755642886464,3.08,179.11,179.08,3.03]
[1755642886862,3.08,179.11,179.04,5.42419386]
[1755642887056,3.08,179.11,179.04,2.39419386]
[1755642887263,3.08,179.11,179.05,3.03]
[1755642887463,3.08,179.11,179.08,3.03]
[1755642887762,3.08,179.11,179.09,3.03]
[1755642888863,2.39419386,179.14,179.07,3.03]
[1755642889170,2.65082073,179.13,179.07,3.03]
[1755642889366,2.39419386,179.14,179.07,3.03]
[1755642889568,2.65086744,179.13,179.07,3.03]
[1755642889769,2.39419386,179.14,179.07,3.03]
[1755642889969,2.65085216,179.13,179.07,3.03]
[1755642890269,2.39419386,179.14,179.07,3.03]
[1755642890466,2.65132169,179.13,179.07,3.03]
[1755642890667,2.39419386,179.14,179.07,3.03]
[1755642890867,2.65115468,179.13,179.07,3.03]
[1755642891068,2.39419386,179.14,179.07,3.03]
[1755642891269,2.6508434,179.13,179.07,3.03]
[1755642891567,2.39419386,179.14,179.07,3.03]
[1755642891770,2.65057859,179.13,179.07,3.03]
[1755642891969,2.39419386,179.14,179.07,3.03]
[1755642892170,2.65068798,179.13,179.07,3.03]
[1755642892366,5.47419386,179.15,179.08,2.39419386]
[1755642892568,2.65099241,179.14,179.08,2.39419386]
[1755642892773,3.08,179.14,179.08,2.39419386]
[1755642892976,3.08,179.14,179.11,3.03]
[1755642893779,6.25967801,179.2,179.13,3.03]
[1755642893971,5.7311665,179.19,179.15,3.03]
[1755642894273,5.7311665,179.18,179.13,3.03]
[1755642894572,2.6511665,179.17,179.12,2.39419386]
[1755642894771,3.08,179.15,179.12,5.42419386]
[1755642895471,3.08,179.15,179.13,3.03]
[1755642898672,5.46419386,179.19,179.13,2.85]
[1755642898873,5.46419386,179.19,179.14,2.85]
[1755642898874,3.07,179.17,179.14,2.85]
[1755642899073,3.07,179.17,179.15,2.85]
[1755642899267,5.46419386,179.21,179.13,2.85]
[1755642899476,2.64765356,179.2,179.14,2.39419386]
[1755642899678,2.64765356,179.19,179.14,2.39419386]
[1755642899875,2.64765356,179.18,179.16,2.85]
[1755642900077,2.64765356,179.18,179.17,2.85]
[1755642900279,3.07,179.19,179.17,2.85]
[1755642901477,5.46419386,179.18,179.11,2.85]
[1755642901679,2.39419386,179.16,179.11,2.85]
[1755642901980,3.07,179.13,179.08,5.24419386]
[1755642902174,3.07,179.13,179.09,2.85]
[1755642902382,3.07,179.13,179.1,2.85]
[1755642902575,3.07,179.13,179.06,2.39419386]
[1755642902779,3.07,179.13,179.07,2.85]
[1755642904176,3.07,179.13,179.04,11.845033]
[1755642904177,2.39419386,179.1,179.03,2.85]
[1755642904371,3.07,179.11,179.03,2.85]
[1755642905081,3.74352139,179.1,179.01,137.64]
[1755642905276,3.07,179.09,179.01,137.64]
[1755642905477,3.74352139,179.07,178.99,218.45691738]
[1755642905681,3.07,179.06,178.99,218.45691738]
[1755642906877,3.07,179.06,179.0,2.85]
[1755642910487,3.07,179.09,179.0,2.85]
[1755642914989,3.07,179.09,179.0,5.5871]
[1755642915290,3.07,179.09,179.01,2.85]
[1755642915791,3.07,179.09,178.96,3.74352139]
[1755642916094,3.07,179.07,178.98,2.85]
[1755642922298,3.07,179.04,178.98,2.85]
[1755642923996,3.07,179.04,178.97,213.21847984]
[1755642924390,6.25967801,179.11,178.95,2.85]
[1755642924391,3.07,179.01,178.95,2.85]
[1755642927398,3.07,179.01,178.93,137.62]
[1755642927700,3.07,178.98,178.92,2.85]
[1755642927901,3.07,178.98,178.89,2.85]
[1755642929297,3.74352139,178.96,178.89,2.85]
[1755642929503,3.12,178.95,178.89,2.85]
[1755642930903,3.74352139,178.99,178.89,2.85]
[1755642931203,3.74352139,178.99,178.9,2.99]
[1755642931703,3.12,179.0,178.9,5.5901]
[1755642931910,3.12,179.0,178.91,2.99]
[1755642933205,3.12,179.0,178.92,2.99]
[1755642940811,3.12,178.97,178.9,211.56146523]
[1755642941009,3.12,178.94,178.88,140.61]
[1755642941213,3.74352139,178.94,178.83,2.99]
[1755642941400,3.12,178.9,178.83,2.99]
[1755642946013,3.12,178.93,178.83,2.99]
[1755642946410,3.74352139,178.91,178.83,2.99]
[1755642946609,3.12,178.9,178.83,2.99]
[1755642957121,3.12,178.9,178.81,137.64]
[1755642957323,3.12,178.9,178.8,378.39]
[1755642957526,3.12,178.9,178.8,516.05]
[1755642957725,3.74352139,178.88,178.8,140.65]
[1755642958025,3.12,178.87,178.8,140.65]
[1755642958918,3.12,178.87,178.81,2.87]
[1755642960122,2.87,178.9,178.81,2.87]
[1755642960419,2.87,178.93,178.81,2.87]
[1755642961123,2.87,178.93,178.83,5.5924]
[1755642961328,2.87,178.93,178.83,2.87]
[1755642962028,2.87,178.93,178.85,2.87]
[1755642962624,2.87,178.96,178.86,2.87]
[1755642963723,2.87,178.96,178.86,8.4613]
[1755642963933,141.38352139,179.0,178.89,2.87]
[1755642963934,2.87,178.99,178.89,2.87]
[1755642968429,2.87,179.02,178.92,2.87]
[1755642970235,2.87,179.02,178.94,3.74352139]
[1755642970538,137.68,179.06,178.95,2.87]
[1755642970727,2.87,179.05,178.95,2.87]
[1755642974834,2.87,179.05,178.98,2.87]
[1755642977028,2.87,179.04,178.92,3.74352139]
[1755642977233,2.87,179.04,178.93,2.87]
[1755642978731,2.87,179.04,178.93,8.4592]
[1755642978938,2.87,179.04,178.94,2.87]
[1755642979637,2.87,179.04,178.95,2.87]
[1755642980934,2.87,179.04,178.96,2.87]
[1755642983640,2.87,179.04,178.96,5.5883]
[1755642983838,2.87,179.04,178.97,2.87]
[1755642985735,2.87,179.07,178.97,5.588]
[1755642985937,2.87,179.07,178.98,2.87]
[1755642987446,2.87,179.07,178.99,2.87]
[1755642992453,2.87,179.06,178.95,2.87]
[1755642993055,2.87,179.06,178.97,2.87]
[1755642995060,2.87,179.06,178.94,2.87]
[1755642995256,3.74352139,179.04,178.94,2.87]
[1755642995554,2.87,179.03,178.94,2.87]
[1755643000370,2.87,179.03,178.95,2.87]
[1755643002063,2.87,179.03,178.96,2.87]
[1755643003068,2.87,179.06,178.96,2.87]
[1755643003258,2.87,179.06,178.95,3.74352139]
[1755643003259,2.87,179.08,179.0,2.87]
[1755643003766,2.87,179.08,179.0,8.4571]
[1755643003965,2.87,179.08,179.01,2.87]
[1755643010081,2.87,179.08,178.96,137.5]
[1755643010274,2.64441773,179.07,178.96,137.5]
[1755643010474,5.51441773,179.06,178.96,137.5]
[1755643010774,2.87,179.05,178.96,137.5]
[1755643012787,2.87,179.05,178.97,2.87]
[1755643014478,2.87,179.03,178.97,2.87]
[1755643016379,3.74352139,179.07,178.97,2.87]
[1755643016380,6.61352139,179.07,178.97,2.87]
[1755643016582,2.87,179.05,178.97,2.87]
[1755643017375,2.87,179.05,178.98,2.87]
[1755643017983,2.87,179.05,178.98,8.4577]
[1755643018285,3.74352139,179.07,178.99,2.87]
[1755643018486,2.88,179.06,178.99,2.87]
[1755643018673,2.88,179.06,178.96,140.36]
[1755643019078,2.88,179.06,178.97,2.86]
[1755643019475,2.64838252,179.05,178.97,2.86]
[1755643019679,2.88,179.04,178.97,2.86]
[1755643020277,5.52804873,179.03,178.93,2.86]
[1755643020482,2.88,179.02,178.93,2.86]
[1755643020988,2.88,179.0,178.91,346.60160891]
[1755643021188,2.88,179.0,178.91,137.48]
[1755643021388,2.88,179.0,178.92,2.86]
[1755643022384,2.88,179.0,178.92,5.5896]
[1755643022587,2.88,179.0,178.93,2.86]
[1755643026388,6.62352139,179.03,178.93,2.86]
[1755643026692,2.88,179.02,178.93,2.86]
[1755643027182,2.88,179.02,178.93,8.4492]
[1755643027390,2.88,179.02,178.94,2.86]
[1755643036096,2.88,179.02,178.91,140.34]
[1755643036400,2.88,179.0,178.91,140.34]
[1755643037589,2.88,179.0,178.92,2.86]
[1755643040193,2.88,179.0,178.92,5.5895]
[1755643040402,2.88,179.03,178.93,2.86]
[1755643041296,2.88,179.03,178.95,2.86]
[1755643042498,6.25967801,179.07,178.97,3.74352139]
[1755643042706,3.74352139,179.18,179.03,2.86]
[1755643042897,2.6455491,179.17,179.04,2.86]
[1755643043093,3.74352139,179.15,179.04,2.86]
[1755643044702,2.88,179.14,179.04,2.86]
[1755643045403,2.88,179.14,179.04,8.4458]
[1755643046605,2.88,179.14,179.04,2.86]
[1755643046798,2.88,179.14,179.03,5.5861]
[1755643046799,2.88,179.14,179.01,3.74352139]
[1755643047304,2.88,179.14,179.01,9.33022139]
[1755643047603,2.88,179.12,179.01,9.33022139]
[1755643048103,2.88,179.12,179.02,8.4465]
[1755643048302,2.88,179.12,179.02,2.86]
[1755643048504,2.88,179.12,179.03,5.5861]
[1755643048703,2.88,179.12,179.04,2.99]
[1755643049198,2.88,179.12,179.01,12.32002139]
[1755643053803,2.88,179.12,179.02,5.5865]
[1755643056611,2.88,179.11,179.0,2.99]
[1755643057305,2.88,179.08,178.98,2.99]
[1755643058112,2.88,179.08,178.99,2.99]
[1755643058503,2.88,179.08,178.99,8.5773]
[1755643058712,2.88,179.08,178.99,2.99]
[1755643059010,2.88,179.08,178.99,8.5772]
[1755643059209,2.88,179.08,179.0,2.99]
[1755643061918,2.88,179.08,178.97,141.01]
[1755643062610,2.88,179.05,178.93,2.99]
[1755643065710,2.88,179.02,178.93,2.99]
[1755643066110,6.25967801,179.05,178.93,2.99]
[1755643066111,2.88,178.99,178.93,2.99]
[1755643066506,2.88,178.99,178.9,2.99]
[1755643069810,3.74352139,178.97,178.9,2.99]
[1755643070006,2.88,178.96,178.9,2.99]
[1755643070206,2.88,178.96,178.87,138.18]
[1755643070413,2.88,178.96,178.86,2.99]
[1755643070609,2.88,178.96,178.83,5.5923]
[1755643070813,3.74352139,178.92,178.82,2.99]
[1755643071018,2.88,178.91,178.82,2.99]
[1755643071612,0.03657031,178.88,178.82,2.99]
[1755643073421,2.88,178.86,178.82,2.99]
[1755643074613,0.03657031,178.88,178.83,2.99]
[1755643074923,0.03657031,178.88,178.79,2.99]
[1755643075221,2.88,178.9,178.79,2.99]
[1755643075823,2.88,178.9,178.79,8.5834]
[1755643076023,2.88,178.9,178.8,2.99]
[1755643077127,2.88,178.88,178.78,141.15]
[1755643077326,2.88,178.85,178.78,2.99]
[1755643080525,2.88,178.85,178.74,3.06]
[1755643080931,3.11,178.83,178.74,3.06]
[1755643081628,3.11,178.8,178.71,356.30981922]
[1755643081825,3.11,178.8,178.72,3.06]
[1755643082028,3.11,178.83,178.72,3.06]
[1755643083329,3.11,178.83,178.73,3.74352139]
[1755643083525,3.11,178.83,178.74,3.06]
[1755643084325,6.85352139,178.87,178.74,3.06]
[1755643084930,6.85352139,178.87,178.75,3.06]
[1755643085428,3.11,178.87,178.77,3.06]
[1755643089124,3.11,178.87,178.79,3.74352139]
[1755643089329,379.50352139,178.9,178.79,3.74352139]
[1755643089330,375.76,178.9,178.8,3.06]
[1755643089525,3.11,178.91,178.8,3.06]
[1755643092338,3.11,178.89,178.77,3.06]
[1755643092935,3.11,178.86,178.77,3.06]
[1755643094428,3.11,178.89,178.77,3.06]
[1755643095732,3.11,178.89,178.73,138.38]
[1755643095733,3.11,178.89,178.8,3.06]
[1755643096637,3.11,178.92,178.81,3.06]
[1755643096836,3.11,178.92,178.81,6.80352139]
[1755643097042,3.11,178.92,178.82,3.06]
[1755643097841,3.11,178.95,178.85,3.06]
[1755643098941,3.11,178.95,178.86,3.06]
[1755643099143,3.11,178.99,178.86,3.06]
[1755643099339,3.11,178.99,178.89,3.06]
[1755643100143,3.11,178.98,178.89,3.06]